bitfinex-derivatives/quotes_BTCF0:USTF0_20250510
["timestamp","ask_amount","ask_price","bid_price","bid_amount"]
[1746896786285,0.167,103530.0,103520.0,1.75385866]
[1746896786687,0.3601517,103530.0,103520.0,1.58716532]
[1746896786887,0.167,103530.0,103520.0,1.75385866]
[1746896788189,0.167,103530.0,103520.0,1.77799866]
[1746896789684,0.167,103530.0,103520.0,1.83003608]
[1746896790889,0.167,103530.0,103520.0,2.02003608]
[1746896792595,0.00544915,103560.0,103550.0,0.1931144]
[1746896792782,0.19854485,103560.0,103550.0,0.94327978]
[1746896793086,0.00544915,103560.0,103550.0,1.39947978]
[1746896793286,0.36454485,103560.0,103550.0,1.39947978]
[1746896793590,0.3630957,103560.0,103550.0,1.39947978]
[1746896793785,0.3650957,103560.0,103550.0,1.39947978]
[1746896793984,0.4262957,103560.0,103550.0,1.39947978]
[1746896794202,0.4282957,103560.0,103550.0,1.39947978]
[1746896794389,0.4282957,103560.0,103550.0,1.03867978]
[1746896794590,0.56886108,103560.0,103550.0,0.9293144]
[1746896794789,0.67822646,103560.0,103550.0,0.6724]
[1746896794998,0.81762646,103560.0,103550.0,0.5047144]
[1746896795292,0.95854646,103560.0,103550.0,0.03]
[1746896795487,0.95654646,103560.0,103550.0,0.03]
[1746896795688,0.95654646,103560.0,103550.0,0.2241144]
[1746896795988,0.7378157,103560.0,103550.0,0.2241144]
[1746896796384,0.95654646,103560.0,103550.0,0.2241144]
[1746896797388,1.0986157,103560.0,103550.0,0.2241144]
[1746896797589,1.31734646,103560.0,103550.0,0.2241144]
[1746896798988,1.0986157,103560.0,103550.0,0.2241144]
[1746896799192,1.31734646,103560.0,103550.0,0.2241144]
[1746896799395,1.31734646,103560.0,103550.0,0.2568144]
[1746896800293,0.95654646,103560.0,103550.0,0.2568144]
[1746896800496,1.31734646,103560.0,103550.0,0.2568144]
[1746896801294,1.20798108,103560.0,103550.0,0.2568144]
[1746896801789,0.9576957,103560.0,103550.0,0.2568144]
[1746896801992,0.4554957,103560.0,103550.0,0.2568144]
[1746896802193,0.4554957,103560.0,103550.0,0.3233144]
[1746896802491,0.4242957,103560.0,103550.0,0.5533144]
[1746896802696,0.4242957,103560.0,103550.0,0.5764544]
[1746896802897,0.3640957,103560.0,103550.0,0.9372544]
[1746896803100,0.4256957,103560.0,103550.0,0.9372544]
[1746896803293,0.4256957,103560.0,103550.0,1.04661978]
[1746896803499,0.3660957,103560.0,103550.0,1.04661978]
[1746896803796,0.3660957,103560.0,103550.0,0.9372544]
[1746896803994,0.3640957,103560.0,103550.0,0.9372544]
[1746896804397,0.171,103560.0,103550.0,1.03382144]
[1746896804588,0.17,103560.0,103550.0,1.22040598]
[1746896804796,0.17,103560.0,103550.0,1.05482144]
[1746896804995,0.17,103560.0,103550.0,1.22140598]
[1746896805191,0.17,103560.0,103550.0,1.05482144]
[1746896805492,0.17,103560.0,103550.0,1.31140598]
[1746896805886,0.17,103560.0,103550.0,1.14482144]
[1746896806091,0.17,103560.0,103550.0,1.31140598]
[1746896806291,0.17,103560.0,103550.0,1.14482144]
[1746896806995,0.3630957,103560.0,103550.0,1.14482144]
[1746896807505,0.2348,103560.0,103550.0,1.14482144]
[1746896807801,0.17,103560.0,103550.0,1.14482144]
[1746896810194,0.17,103560.0,103550.0,1.56112144]
[1746896810701,0.2027,103560.0,103550.0,1.56112144]
[1746896811300,0.2334,103560.0,103550.0,1.56112144]
[1746896812304,0.2334,103560.0,103550.0,1.20032144]
[1746896813004,0.2334,103560.0,103550.0,1.72770598]
[1746896813199,0.17,103560.0,103550.0,1.56112144]
[1746896813398,0.17,103560.0,103550.0,1.72770598]
[1746896813604,0.2011,103560.0,103550.0,1.56112144]
[1746896813804,0.17,103560.0,103550.0,1.56112144]
[1746896814202,0.17,103560.0,103550.0,1.72770598]
[1746896815803,0.17,103560.0,103550.0,1.36690598]
[1746896816004,0.17,103560.0,103550.0,2.08850598]
[1746896816604,0.17,103560.0,103550.0,2.09809251]
[1746896817104,0.17,103560.0,103550.0,1.93150797]
[1746896818902,0.17,103560.0,103550.0,2.09809251]
[1746896820109,0.17,103560.0,103550.0,1.93150797]
[1746896820406,0.17,103560.0,103550.0,2.09809251]
[1746896821308,0.17,103560.0,103550.0,1.93150797]
[1746896821499,0.62428024,103560.0,103550.0,1.0837544]
[1746896821802,0.79086478,103560.0,103550.0,0.73414]
[1746896822205,0.62428024,103560.0,103550.0,0.73414]
[1746896822402,0.79086478,103560.0,103550.0,0.73414]
[1746896822707,0.62428024,103560.0,103550.0,0.9272544]
[1746896823693,0.4576957,103560.0,103550.0,0.9272544]
[1746896823907,0.62428024,103560.0,103550.0,0.9272544]
[1746896824608,0.4576957,103560.0,103550.0,0.9272544]
[1746896824798,0.62428024,103560.0,103550.0,0.9272544]
[1746896825107,1.15166478,103560.0,103550.0,0.06514]
[1746896825606,1.30538478,103560.0,103550.0,0.07978324]
[1746896826909,1.30538478,103560.0,103550.0,0.27289764]
[1746896827104,1.30538478,103560.0,103550.0,0.07978324]
[1746896827304,1.13880024,103560.0,103550.0,0.07978324]
[1746896828810,1.30538478,103560.0,103550.0,0.07978324]
[1746896829307,0.9722157,103560.0,103550.0,0.07978324]
[1746896829602,0.77800024,103560.0,103550.0,0.07978324]
[1746896829908,1.13880024,103560.0,103550.0,0.07978324]
[1746896830299,0.77800024,103560.0,103550.0,0.07978324]
[1746896830501,1.13880024,103560.0,103550.0,0.07978324]
[1746896831107,0.77800024,103560.0,103550.0,0.07978324]
[1746896831307,1.13880024,103560.0,103550.0,0.07978324]
[1746896831694,0.6114157,103560.0,103550.0,0.27289764]
[1746896831903,0.7711357,103560.0,103550.0,0.66609764]
[1746896832201,0.7711357,103560.0,103550.0,0.7132544]
[1746896833000,0.4576957,103560.0,103550.0,0.7132544]
[1746896833304,0.4576957,103560.0,103550.0,1.05982144]
[1746896833305,0.4260957,103560.0,103550.0,1.05982144]
[1746896833800,0.3630957,103560.0,103550.0,1.05982144]
[1746896834108,0.3630957,103560.0,103550.0,1.47612144]
[1746896835308,0.3630957,103560.0,103550.0,1.11532144]
[1746896835509,0.3630957,103560.0,103550.0,1.47612144]
[1746896835709,0.3630957,103560.0,103550.0,1.57612144]
[1746896836815,0.17,103560.0,103550.0,1.57612144]
[1746896837212,0.3630957,103560.0,103550.0,1.57612144]
[1746896837506,0.3630957,103560.0,103550.0,1.21532144]
[1746896837710,0.3630957,103560.0,103550.0,1.57612144]
[1746896837911,0.3630957,103560.0,103550.0,1.21532144]
[1746896838113,0.17,103560.0,103550.0,1.32640598]
[1746896841213,0.17,103560.0,103550.0,1.15982144]
[1746896841420,0.17,103560.0,103550.0,1.32640598]
[1746896843209,0.17,103560.0,103550.0,1.74270598]
[1746896844921,0.17,103560.0,103550.0,1.57612144]
[1746896845123,0.17,103560.0,103550.0,1.74270598]
[1746896848528,0.17,103560.0,103550.0,1.86270598]
[1746896849526,0.17,103560.0,103550.0,1.69612144]
[1746896849923,0.17,103560.0,103550.0,1.80543817]
[1746896850612,0.17,103560.0,103550.0,1.69612144]
[1746896850810,0.17,103560.0,103550.0,1.80543817]
[1746896853924,0.17,103560.0,103550.0,1.69612144]
[1746896854120,0.17,103560.0,103550.0,1.80543817]
[1746896854330,0.17,103560.0,103550.0,1.69612144]
[1746896854623,0.17,103560.0,103550.0,1.80543817]
[1746896855521,0.2004,103560.0,103550.0,1.80543817]
[1746896856218,0.17,103560.0,103550.0,1.80543817]
[1746896857829,0.2019,103560.0,103550.0,1.80543817]
[1746896858722,0.2019,103560.0,103550.0,1.69612144]
[1746896858723,0.2659,103560.0,103550.0,1.69612144]
[1746896859319,0.2326,103560.0,103550.0,1.80543817]
[1746896859730,0.2326,103560.0,103550.0,1.80443817]
[1746896860920,0.2326,103560.0,103550.0,1.69512144]
[1746896860921,0.17,103560.0,103550.0,1.69512144]
[1746896861122,0.17,103560.0,103550.0,1.80443817]
[1746896861316,0.234,103560.0,103550.0,1.80443817]
[1746896862028,0.17,103560.0,103550.0,1.80443817]
[1746896863120,0.233,103560.0,103550.0,1.80443817]
[1746896863326,0.17,103560.0,103550.0,1.80643817]
[1746896863728,0.17,103560.0,103550.0,1.80843817]
[1746896866535,0.17,103560.0,103550.0,1.69912144]
[1746896867033,0.2029,103560.0,103550.0,1.80843817]
[1746896867529,0.2029,103560.0,103550.0,1.69912144]
[1746896867736,0.2029,103560.0,103550.0,1.80843817]
[1746896868531,0.234,103560.0,103550.0,1.80843817]
[1746896870038,0.234,103560.0,103550.0,1.69912144]
[1746896870330,0.234,103560.0,103550.0,1.80843817]
[1746896871630,0.2029,103560.0,103550.0,1.80843817]
[1746896871835,0.17,103560.0,103550.0,1.80843817]
[1746896872834,0.17,103560.0,103550.0,1.82056713]
[1746896873236,0.17,103560.0,103550.0,1.98308713]
[1746896874033,0.17,103560.0,103550.0,1.97095817]
[1746896875232,0.17,103560.0,103550.0,1.98308749]
[1746896875832,0.2028,103560.0,103550.0,1.98308749]
[1746896876033,0.2028,103560.0,103550.0,1.97095817]
[1746896876533,0.17,103560.0,103550.0,1.97095817]
[1746896877038,0.37606501,103590.0,103580.0,0.1930584]
[1746896877242,0.74052364,103590.0,103580.0,0.2630584]
[1746896878136,0.54572364,103590.0,103580.0,0.2630584]
[1746896878331,0.58022364,103590.0,103580.0,0.2640584]
[1746896878532,0.94102364,103590.0,103580.0,0.2640584]
[1746896879143,0.94402364,103590.0,103580.0,0.2640584]
[1746896879935,0.94402364,103590.0,103580.0,0.2881884]
[1746896880136,0.94402364,103590.0,103580.0,0.09513]
[1746896880340,1.14988037,103590.0,103580.0,0.2881884]
[1746896880541,1.04056364,103590.0,103580.0,0.2881884]
[1746896881144,1.14988037,103590.0,103580.0,0.09513]
[1746896884042,1.31240037,103590.0,103580.0,0.09513]
[1746896884555,1.21586037,103590.0,103580.0,0.09513]
[1746896884954,1.31240037,103590.0,103580.0,0.09513]
[1746896885742,1.09376691,103590.0,103580.0,0.09513]
[1746896885947,1.31240037,103590.0,103580.0,0.09513]
[1746896886657,1.20308364,103590.0,103580.0,0.09513]
[1746896887048,1.31240037,103590.0,103580.0,0.09513]
[1746896890555,1.21586037,103590.0,103580.0,0.09513]
[1746896891052,1.31240037,103590.0,103580.0,0.09513]
[1746896891755,1.21586037,103590.0,103580.0,0.09513]
[1746896892259,1.37616037,103590.0,103580.0,0.09513]
[1746896897661,1.21586037,103590.0,103580.0,0.09513]
[1746896897846,0.99722691,103590.0,103580.0,0.09513]
[1746896898354,1.21586037,103590.0,103580.0,0.09513]
[1746896899060,0.1930584,103580.0,103570.0,0.0305]
[1746896899252,1.03027186,103580.0,103570.0,0.0405]
[1746896900152,1.19827186,103580.0,103570.0,0.0405]
[1746896901253,1.20027186,103580.0,103570.0,0.0405]
[1746896904062,0.1930771,103570.0,103560.0,0.0643]
[1746896904263,0.86751056,103570.0,103560.0,0.02]
[1746896904559,1.02911056,103570.0,103560.0,0.02]
[1746896905059,1.08579383,103570.0,103560.0,0.02]
[1746896905762,1.08579383,103570.0,103560.0,0.0846]
[1746896905953,1.08579383,103570.0,103560.0,0.09919835]
[1746896906660,1.08979383,103570.0,103560.0,0.10019835]
[1746896907162,1.08579383,103570.0,103560.0,0.09919835]
[1746896907365,0.9479771,103570.0,103560.0,0.32359405]
[1746896907564,1.05729383,103570.0,103560.0,0.32359405]
[1746896907765,1.05929383,103570.0,103560.0,0.3089957]
[1746896908864,1.05929383,103570.0,103560.0,0.1159]
[1746896910166,1.05929383,103570.0,103560.0,0.3089957]
[1746896910359,1.09249383,103570.0,103560.0,0.3089957]
[1746896911060,0.73169383,103570.0,103560.0,0.3089957]
[1746896911263,1.09249383,103570.0,103560.0,0.3089957]
[1746896911855,1.09249383,103570.0,103560.0,0.1159]
[1746896912065,1.09249383,103570.0,103560.0,0.3089957]
[1746896912264,1.09249383,103570.0,103560.0,0.1159]
[1746896913066,1.09249383,103570.0,103560.0,0.3089957]
[1746896913867,0.9831771,103570.0,103560.0,0.3089957]
[1746896914068,1.09249383,103570.0,103560.0,0.3089957]
[1746896914367,1.09249383,103570.0,103560.0,0.1159]
[1746896915469,0.9831771,103570.0,103560.0,0.1159]
[1746896915670,1.09249383,103570.0,103560.0,0.1159]
[1746896920062,1.20181056,103570.0,103560.0,0.1159]
[1746896921068,1.09249383,103570.0,103560.0,0.1159]
[1746896922163,1.20181056,103570.0,103560.0,0.02]
[1746896923071,1.20181056,103570.0,103560.0,0.0513]
[1746896924471,0.9831771,103570.0,103560.0,0.0513]
[1746896924667,1.20181056,103570.0,103560.0,0.0513]
[1746896927777,1.36211056,103570.0,103560.0,0.0513]
[1746896928771,1.1434771,103570.0,103560.0,0.0513]
[1746896929074,1.36211056,103570.0,103560.0,0.0513]
[1746896931371,1.36211056,103570.0,103560.0,0.0313]
[1746896931976,1.20181056,103570.0,103560.0,0.0313]
[1746896932277,1.35797056,103570.0,103560.0,0.0313]
[1746896932473,1.1393371,103570.0,103560.0,0.0929]
[1746896932681,1.35797056,103570.0,103560.0,0.0929]
[1746896933075,1.1393371,103570.0,103560.0,0.0929]
[1746896933274,1.24865383,103570.0,103560.0,0.0929]
[1746896933481,1.35797056,103570.0,103560.0,0.0929]
[1746896933873,1.1393371,103570.0,103560.0,0.0929]
[1746896934071,1.35797056,103570.0,103560.0,0.0929]
[1746896941780,1.1385371,103570.0,103560.0,0.0929]
[1746896941985,1.24785383,103570.0,103560.0,0.0929]
[1746896944281,1.35717056,103570.0,103560.0,0.0929]
[1746896945688,1.71797056,103570.0,103560.0,0.0929]
[1746896946085,1.60865383,103570.0,103560.0,0.0929]
[1746896949392,1.4993371,103570.0,103560.0,0.0929]
[1746896949595,1.60865383,103570.0,103560.0,0.0929]
[1746896950187,1.4993371,103570.0,103560.0,0.0929]
[1746896950391,1.60865383,103570.0,103560.0,0.0929]
[1746896951889,1.71797056,103570.0,103560.0,0.0929]
[1746896952892,1.4993371,103570.0,103560.0,0.0929]
[1746896953194,1.71797056,103570.0,103560.0,0.0929]
[1746896955196,1.4993371,103570.0,103560.0,0.0929]
[1746896955586,1.60865383,103570.0,103560.0,0.0929]
[1746896955887,1.71797056,103570.0,103560.0,0.0929]
[1746896956383,0.1930957,103560.0,103550.0,0.00279]
[1746896956581,0.83352916,103560.0,103550.0,0.16659]
[1746896956789,0.86472916,103560.0,103550.0,0.1638]
[1746896957097,1.03072916,103560.0,103550.0,0.1004]
[1746896957487,1.03072916,103560.0,103550.0,0.1014]
[1746896957793,0.1931144,103550.0,103540.0,0.0634]
[1746896957992,1.17078786,103550.0,103540.0,0.0504]
[1746896958296,1.33678786,103550.0,103540.0,0.0504]
[1746896959096,1.33678786,103550.0,103540.0,0.02]
[1746896959491,1.33778786,103550.0,103540.0,0.022]
[1746896959691,1.33778786,103550.0,103540.0,0.025]
[1746896960597,1.35195263,103550.0,103540.0,0.025]
[1746896962099,1.35195263,103550.0,103540.0,0.005]
[1746896962293,0.99115263,103550.0,103540.0,0.005]
[1746896962499,1.71275263,103550.0,103540.0,0.005]
[1746896962791,1.6026359,103550.0,103540.0,0.005]
[1746896962993,1.6026359,103550.0,103540.0,0.1014]
[1746896963794,1.4505959,103550.0,103540.0,0.1014]
[1746896964094,1.6028759,103550.0,103540.0,0.1014]
[1746896964505,1.71219263,103550.0,103540.0,0.1014]
[1746896965793,1.6028759,103550.0,103540.0,0.1014]
[1746896967507,1.71219263,103550.0,103540.0,0.1014]
[1746896969400,1.71135263,103550.0,103540.0,0.1014]
[1746896969601,1.49271917,103550.0,103540.0,0.1014]
[1746896969909,1.6020359,103550.0,103540.0,0.1014]
[1746896972508,1.2412359,103550.0,103540.0,0.1014]
[1746896973716,0.82727917,103550.0,103540.0,0.1014]
[1746896973915,1.2407159,103550.0,103540.0,0.1014]
[1746896976817,1.35003263,103550.0,103540.0,0.1014]
[1746896977009,1.2407159,103550.0,103540.0,0.1014]
[1746896977518,1.4010159,103550.0,103540.0,0.1014]
[1746896978423,1.38593113,103550.0,103540.0,0.1014]
[1746896982213,1.22563113,103550.0,103540.0,0.1014]
[1746896984135,1.1163144,103550.0,103540.0,0.1014]
[1746896984321,1.22563113,103550.0,103540.0,0.1014]
[1746896984831,1.1163144,103550.0,103540.0,0.1014]
[1746896985129,1.22563113,103550.0,103540.0,0.1014]
[1746896988533,1.22563113,103550.0,103540.0,0.1042]
[1746896989029,1.1163144,103550.0,103540.0,0.1042]
[1746896989236,1.22563113,103550.0,103540.0,0.1042]
[1746896994536,0.8131144,103550.0,103540.0,0.1042]
[1746896994741,0.7518144,103550.0,103540.0,0.307333]
[1746896994932,1.00865113,103550.0,103540.0,0.307333]
[1746896995636,0.8993344,103550.0,103540.0,0.307333]
[1746896995942,1.00865113,103550.0,103540.0,0.307333]
[1746896997428,1.04095113,103550.0,103540.0,0.307333]
[1746897002246,0.7841144,103550.0,103540.0,0.307333]
[1746897002437,0.89343113,103550.0,103540.0,0.307333]
[1746897003651,0.7841144,103550.0,103540.0,0.307333]
[1746897003841,0.89343113,103550.0,103540.0,0.307333]
[1746897004445,0.7841144,103550.0,103540.0,0.307333]
[1746897004649,0.89343113,103550.0,103540.0,0.307333]
[1746897005146,0.86113113,103550.0,103540.0,0.307333]
[1746897005543,0.7518144,103550.0,103540.0,0.307333]
[1746897005734,0.86113113,103550.0,103540.0,0.307333]
[1746897005941,0.7518144,103550.0,103540.0,0.307333]
[1746897006251,0.86113113,103550.0,103540.0,0.307333]
[1746897006550,0.3910144,103550.0,103540.0,0.307333]
[1746897006944,0.50033113,103550.0,103540.0,0.307333]
[1746897009151,0.89433113,103550.0,103540.0,0.307333]
[1746897009352,0.53353113,103550.0,103540.0,0.307333]
[1746897009548,0.4242144,103550.0,103540.0,0.668133]
[1746897009851,0.53353113,103550.0,103540.0,0.307333]
[1746897010153,0.4242144,103550.0,103540.0,0.307333]
[1746897010348,0.53353113,103550.0,103540.0,0.307333]
[1746897011053,0.4242144,103550.0,103540.0,0.307333]
[1746897011348,0.53353113,103550.0,103540.0,0.307333]
[1746897011757,0.89433113,103550.0,103540.0,0.307333]
[1746897011941,0.8178144,103550.0,103540.0,0.307333]
[1746897012148,0.92713113,103550.0,103540.0,0.307333]
[1746897012348,0.56633113,103550.0,103540.0,0.307333]
[1746897012549,0.4570144,103550.0,103540.0,0.307333]
[1746897012750,0.56633113,103550.0,103540.0,0.307333]
[1746897013751,0.4570144,103550.0,103540.0,0.307333]
[1746897013954,0.56633113,103550.0,103540.0,0.307333]
[1746897015263,0.4570144,103550.0,103540.0,0.307333]
[1746897015556,0.56633113,103550.0,103540.0,0.307333]
[1746897016858,0.4570144,103550.0,103540.0,0.307333]
[1746897017058,0.56633113,103550.0,103540.0,0.307333]
[1746897017451,0.72663113,103550.0,103540.0,0.307333]
[1746897017654,0.50033113,103550.0,103540.0,0.307333]
[1746897018260,0.53203113,103550.0,103540.0,0.307333]
[1746897018562,0.4227144,103550.0,103540.0,0.307333]
[1746897018756,0.4227144,103550.0,103540.0,0.457333]
[1746897018954,0.53203113,103550.0,103540.0,0.457333]
[1746897019859,0.56483113,103550.0,103540.0,0.457333]
[1746897020657,0.4555144,103550.0,103540.0,0.457333]
[1746897020961,0.56483113,103550.0,103540.0,0.457333]
[1746897022366,0.4555144,103550.0,103540.0,0.457333]
[1746897022661,0.56483113,103550.0,103540.0,0.457333]
[1746897025159,0.4555144,103550.0,103540.0,0.457333]
[1746897025467,0.56483113,103550.0,103540.0,0.457333]
[1746897025756,0.37171673,103550.0,103540.0,0.457333]
[1746897026060,0.1979,103550.0,103540.0,1.68964282]
[1746897026254,0.001,103550.0,103540.0,1.68964282]
[1746897026451,0.001,103550.0,103540.0,1.47100936]
[1746897026767,0.001,103550.0,103540.0,1.58032609]
[1746897027263,0.167,103550.0,103540.0,1.47100936]
[1746897027464,0.167,103550.0,103540.0,1.58032609]
[1746897027649,0.1975,103550.0,103540.0,1.21952609]
[1746897027853,0.1975,103550.0,103540.0,1.58032609]
[1746897028464,0.1975,103550.0,103540.0,1.11020936]
[1746897028658,0.1975,103550.0,103540.0,1.47100936]
[1746897028859,0.1975,103550.0,103540.0,1.58032609]
[1746897029257,0.1975,103550.0,103540.0,1.16402609]
[1746897030663,0.167,103550.0,103540.0,1.16402609]
[1746897030964,0.167,103550.0,103540.0,1.49991882]
[1746897031361,0.4254,103570.0,103560.0,0.1930957]
[1746897031566,0.4242,103570.0,103560.0,0.55241243]
[1746897031764,0.4242,103570.0,103560.0,0.5372957]
[1746897032065,0.0634,103570.0,103560.0,0.8980957]
[1746897032370,0.2294,103570.0,103560.0,1.3143957]
[1746897032554,0.2294,103570.0,103560.0,1.42371243]
[1746897032759,0.2314,103570.0,103560.0,1.3143957]
[1746897032958,0.2314,103570.0,103560.0,1.43356919]
[1746897033159,0.4254771,103570.0,103560.0,1.32425246]
[1746897033658,0.4234771,103570.0,103560.0,1.32425246]
[1746897033862,0.4254771,103570.0,103560.0,1.3143957]
[1746897034168,0.4244771,103570.0,103560.0,0.9545957]
[1746897034368,0.56419383,103570.0,103560.0,0.9545957]
[1746897034672,0.92499383,103570.0,103560.0,0.9545957]
[1746897034969,0.92499383,103570.0,103560.0,0.9573957]
[1746897035263,0.92399383,103570.0,103560.0,0.9573957]
[1746897036263,0.8146771,103570.0,103560.0,0.9573957]
[1746897036471,0.92399383,103570.0,103560.0,0.6701]
[1746897036663,0.92399383,103570.0,103560.0,0.8631957]
[1746897037869,1.08151383,103570.0,103560.0,0.8631957]
[1746897038169,1.08151383,103570.0,103560.0,0.4468957]
[1746897039271,0.9721971,103570.0,103560.0,0.4468957]
[1746897039467,1.08151383,103570.0,103560.0,0.4468957]
[1746897039670,1.08151383,103570.0,103560.0,0.4790957]
[1746897040071,1.08151383,103570.0,103560.0,0.286]
[1746897041371,0.9721971,103570.0,103560.0,0.286]
[1746897041574,1.08151383,103570.0,103560.0,0.286]
[1746897041959,1.08151383,103570.0,103560.0,0.2538]
[1746897044172,1.08151383,103570.0,103560.0,0.2844]
[1746897046677,0.9721971,103570.0,103560.0,0.2844]
[1746897046870,1.08151383,103570.0,103560.0,0.2844]
[1746897047071,0.9721971,103570.0,103560.0,0.2844]
[1746897047271,1.08151383,103570.0,103560.0,0.2844]
[1746897047675,0.9721971,103570.0,103560.0,0.2844]
[1746897047969,1.08151383,103570.0,103560.0,0.2844]
[1746897051876,0.9721971,103570.0,103560.0,0.2844]
[1746897052477,0.9721971,103570.0,103560.0,0.3462]
[1746897052869,1.08151383,103570.0,103560.0,0.3462]
[1746897054870,0.9721971,103570.0,103560.0,0.3462]
[1746897055071,1.08151383,103570.0,103560.0,0.3462]
[1746897055272,0.9721971,103570.0,103560.0,0.3462]
[1746897055572,1.08151383,103570.0,103560.0,0.3462]
[1746897055773,0.9721971,103570.0,103560.0,0.3462]
[1746897055973,1.08151383,103570.0,103560.0,0.3462]
[1746897056173,0.9721971,103570.0,103560.0,0.3462]
[1746897056470,1.08151383,103570.0,103560.0,0.3462]
[1746897056883,0.9721971,103570.0,103560.0,0.3462]
[1746897057580,1.08151383,103570.0,103560.0,0.3462]
[1746897057976,0.9721971,103570.0,103560.0,0.3462]
[1746897058172,1.08151383,103570.0,103560.0,0.3462]
[1746897059473,0.9721971,103570.0,103560.0,0.3462]
[1746897059671,1.08151383,103570.0,103560.0,0.3462]
[1746897060074,0.9721971,103570.0,103560.0,0.5392957]
[1746897060382,0.8146771,103570.0,103560.0,0.5392957]
[1746897060981,0.7842771,103570.0,103560.0,0.5392957]
[1746897061381,0.89359383,103570.0,103560.0,0.5392957]
[1746897061682,0.7842771,103570.0,103560.0,0.3462]
[1746897061883,0.92499383,103570.0,103560.0,0.3462]
[1746897062085,0.8156771,103570.0,103560.0,0.3462]
[1746897062381,0.8156771,103570.0,103560.0,0.5392957]
[1746897062881,0.92499383,103570.0,103560.0,0.5392957]
[1746897063379,0.92499383,103570.0,103560.0,0.3462]
[1746897063581,0.8156771,103570.0,103560.0,0.5392957]
[1746897063780,0.92499383,103570.0,103560.0,0.5392957]
[1746897065479,0.92499383,103570.0,103560.0,0.3462]
[1746897065679,1.03431056,103570.0,103560.0,0.0644]
[1746897065979,0.92499383,103570.0,103560.0,0.0338]
[1746897066175,0.8156771,103570.0,103560.0,0.0338]
[1746897066682,0.92499383,103570.0,103560.0,0.0338]
[1746897067579,0.8156771,103570.0,103560.0,0.0338]
[1746897067784,0.92499383,103570.0,103560.0,0.0338]
[1746897067986,1.10063383,103570.0,103560.0,0.0338]
[1746897069670,1.20995056,103570.0,103560.0,0.0338]
[1746897070182,1.10063383,103570.0,103560.0,0.04837155]
[1746897070682,1.20995056,103570.0,103560.0,0.04837155]
[1746897071075,1.20995056,103570.0,103560.0,0.04737155]
[1746897071378,1.21095056,103570.0,103560.0,0.04737155]
[1746897071786,1.20995056,103570.0,103560.0,0.04737155]
[1746897072082,1.21195056,103570.0,103560.0,0.04737155]
[1746897072676,1.21095056,103570.0,103560.0,0.04737155]
[1746897072879,1.21195056,103570.0,103560.0,0.0328]
[1746897073387,1.10263383,103570.0,103560.0,0.0328]
[1746897074878,0.8176771,103570.0,103560.0,0.0328]
[1746897075074,0.92699383,103570.0,103560.0,0.0966]
[1746897075275,0.9971171,103570.0,103560.0,0.3206957]
[1746897075475,1.10643383,103570.0,103560.0,0.3206957]
[1746897075679,0.9971171,103570.0,103560.0,0.3206957]
[1746897075880,1.10643383,103570.0,103560.0,0.3206957]
[1746897076071,1.10543383,103570.0,103560.0,0.3206957]
[1746897076274,1.07531383,103570.0,103560.0,0.3206957]
[1746897076476,1.07331383,103570.0,103560.0,0.3206957]
[1746897076884,1.07231383,103570.0,103560.0,0.3206957]
[1746897077076,1.07231383,103570.0,103560.0,0.1286]
[1746897077877,1.10381383,103570.0,103560.0,0.1286]
[1746897078077,0.9944971,103570.0,103560.0,0.1286]
[1746897078278,1.10381383,103570.0,103560.0,0.1286]
[1746897079579,0.9944971,103570.0,103560.0,0.1286]
[1746897079780,1.10381383,103570.0,103560.0,0.1286]
[1746897080687,0.9944971,103570.0,103560.0,0.1286]
[1746897080890,1.10381383,103570.0,103560.0,0.1286]
[1746897081085,0.9944971,103570.0,103560.0,0.1286]
[1746897081290,1.10381383,103570.0,103560.0,0.1286]
[1746897081489,0.9944971,103570.0,103560.0,0.1286]
[1746897081687,1.10381383,103570.0,103560.0,0.1286]
[1746897082291,0.9944971,103570.0,103560.0,0.1286]
[1746897082590,1.10381383,103570.0,103560.0,0.1286]
[1746897082784,0.9944971,103570.0,103560.0,0.1286]
[1746897082985,1.10381383,103570.0,103560.0,0.1286]
[1746897083177,1.10381383,103570.0,103560.0,0.3216957]
[1746897083587,0.9944971,103570.0,103560.0,0.1286]
[1746897083793,1.10381383,103570.0,103560.0,0.1286]
[1746897084484,0.9944971,103570.0,103560.0,0.1286]
[1746897084786,1.10381383,103570.0,103560.0,0.1286]
[1746897085287,0.9944971,103570.0,103560.0,0.1286]
[1746897085492,1.10381383,103570.0,103560.0,0.1286]
[1746897085986,1.10381383,103570.0,103560.0,0.3216957]
[1746897086191,0.9944971,103570.0,103560.0,0.3216957]
[1746897086381,1.10381383,103570.0,103560.0,0.3216957]
[1746897086582,0.9944971,103570.0,103560.0,0.3216957]
[1746897087094,1.10381383,103570.0,103560.0,0.3216957]
[1746897087486,0.8147771,103570.0,103560.0,0.3216957]
[1746897087687,0.9984571,103570.0,103560.0,0.3216957]
[1746897087887,1.10777383,103570.0,103560.0,0.3216957]
[1746897088795,1.21709056,103570.0,103560.0,0.0338]
[1746897089096,0.1930957,103560.0,103550.0,0.0305]
[1746897089293,0.83482916,103560.0,103550.0,0.0805]
[1746897089687,0.2241957,103560.0,103550.0,0.38293113]
[1746897089889,1.19645614,103570.0,103560.0,0.1930957]
[1746897090084,1.30577287,103570.0,103560.0,0.1541]
[1746897090288,1.20237287,103570.0,103560.0,0.0905]
[1746897090990,1.09305614,103570.0,103560.0,0.0905]
[1746897091189,1.09305614,103570.0,103560.0,0.0895]
[1746897091190,1.36837287,103570.0,103560.0,0.0895]
[1746897091394,1.36837287,103570.0,103560.0,0.1521]
[1746897092098,1.36837287,103570.0,103560.0,0.1531]
[1746897092305,1.25905614,103570.0,103560.0,0.1531]
[1746897092489,1.36837287,103570.0,103560.0,0.1531]
[1746897093592,1.25905614,103570.0,103560.0,0.1531]
[1746897093793,1.36837287,103570.0,103560.0,0.1531]
[1746897093991,1.36837287,103570.0,103560.0,0.1215]
[1746897096204,1.25905614,103570.0,103560.0,0.1215]
[1746897096403,1.36837287,103570.0,103560.0,0.1215]
[1746897096898,1.4776896,103570.0,103560.0,0.061]
[1746897097801,0.1931144,103550.0,103540.0,0.6118]
[1746897098005,0.66323113,103550.0,103540.0,0.7318]
[1746897098193,0.92493113,103550.0,103540.0,0.3155]
[1746897098393,0.93463518,103550.0,103540.0,0.3155]
[1746897098793,0.82531845,103550.0,103540.0,0.3155]
[1746897099088,0.93463518,103550.0,103540.0,0.3155]